bitfinex-derivatives/quotes_SOLF0:USTF0_20241206
["timestamp","ask_amount","ask_price","bid_price","bid_amount"]
[1733462323623,2.06,241.81,241.71,5.67536324]
[1733462323827,2.06,241.81,241.74,5.67536324]
[1733462324226,1.3274,241.95,241.77,5.67536324]
[1733462324427,5.67536324,241.89,241.77,5.67536324]
[1733462324732,2.06,241.88,241.77,5.67536324]
[1733462325231,2.0661,241.84,241.77,5.67536324]
[1733462325431,2.06,241.88,241.77,5.67536324]
[1733462325930,2.0662,241.84,241.77,5.67536324]
[1733462326828,2.06,241.88,241.78,5.67536324]
[1733462327126,5.67536324,241.86,241.75,1.2783]
[1733462327330,5.67536324,241.83,241.67,2.5557]
[1733462327521,5.67536324,241.83,241.72,5.67536324]
[1733462327722,2.0667,241.78,241.72,5.67536324]
[1733462327921,2.06,241.82,241.67,2.5557]
[1733462328120,5.67536324,241.8,241.71,5.67536324]
[1733462329635,2.0669,241.75,241.67,2.5557]
[1733462329833,5.67536324,241.76,241.67,2.5557]
[1733462330034,2.06,241.75,241.67,8.23106324]
[1733462330327,2.0672,241.71,241.64,5.67536324]
[1733462330931,2.0672,241.71,241.63,1.2612]
[1733462331130,2.0674,241.69,241.63,6.93656324]
[1733462331834,5.67536324,241.72,241.63,6.93656324]
[1733462332230,5.67536324,241.72,241.63,1.2612]
[1733462332430,5.67536324,241.72,241.63,6.93656324]
[1733462333134,2.0676,241.67,241.63,1.2612]
[1733462333533,7.73536324,241.7,241.63,1.2612]
[1733462333739,5.67536324,241.68,241.58,5.67536324]
[1733462334237,2.0678,241.64,241.58,5.67536324]
[1733462334535,5.67536324,241.68,241.58,5.67536324]
[1733462334736,5.67536324,241.68,241.57,1.2202]
[1733462334936,2.068,241.62,241.58,5.67536324]
[1733462336836,2.0679,241.63,241.57,1.2202]
[1733462337031,2.06,241.65,241.57,6.89556324]
[1733462338237,2.0681,241.61,241.57,1.2202]
[1733462339529,5.67536324,241.64,241.57,1.2202]
[1733462339732,2.0682,241.6,241.57,1.2202]
[1733462341439,2.0683,241.59,241.52,2.12]
[1733462341640,2.0683,241.59,241.54,5.67536324]
[1733462341844,5.67536324,241.62,241.52,3.3799]
[1733462342048,5.67536324,241.62,241.54,5.67536324]
[1733462342541,2.12,241.61,241.54,5.67536324]
[1733462342733,2.0684,241.58,241.54,5.67536324]
[1733462343339,2.0684,241.58,241.52,1.2599]
[1733462343536,2.0684,241.58,241.54,5.67536324]
[1733462344239,2.0686,241.55,241.44,2.0695]
[1733462344541,7.79536324,241.6,241.51,5.67536324]
[1733462344933,2.0684,241.58,241.51,5.67536324]
[1733462345141,7.79536324,241.6,241.51,5.67536324]
[1733462346043,2.0686,241.55,241.51,5.67536324]
[1733462346342,5.67536324,241.58,241.49,5.67536324]
[1733462346536,2.0687,241.54,241.47,5.67536324]
[1733462346743,2.12,241.55,241.47,5.67536324]
[1733462347138,2.0689,241.51,241.47,5.67536324]
[1733462347343,2.0689,241.51,241.45,6.93526324]
[1733462347848,2.069,241.5,241.45,1.2599]
[1733462352846,2.12,241.52,241.45,1.2599]
[1733462353048,5.67536324,241.51,241.45,1.2599]
[1733462353750,5.67536324,241.49,241.41,0.34607]
[1733462354148,5.67536324,241.47,241.41,0.34607]
[1733462354354,2.0695,241.45,241.41,0.34607]
[1733462356145,5.67536324,241.45,241.41,0.34607]
[1733462356346,2.0697,241.43,241.41,0.34607]
[1733462356543,43.08,241.63,241.41,0.34607]
[1733462356749,2.0692,241.49,241.42,5.67536324]
[1733462356948,2.12,241.49,241.42,5.67536324]
[1733462357157,5.67536324,241.52,241.44,5.67536324]
[1733462357350,7.79536324,241.52,241.44,5.67536324]
[1733462358251,2.0692,241.49,241.41,0.34607]
[1733462358948,2.0693,241.48,241.41,0.34607]
[1733462359147,1.3348,241.61,241.44,5.67536324]
[1733462359360,5.67536324,241.52,241.44,5.67536324]
[1733462359657,2.069,241.51,241.42,5.67536324]
[1733462359853,5.67536324,241.5,241.41,0.34607]
[1733462360052,2.12,241.52,241.41,0.34607]
[1733462360053,7.74466324,241.48,241.41,0.34607]
[1733462360258,2.0693,241.48,241.41,0.34607]
[1733462360758,2.0693,241.48,241.41,6.02143324]
[1733462362661,2.0693,241.48,241.41,0.34607]
[1733462363254,2.0695,241.46,241.41,0.34607]
[1733462363559,2.12,241.47,241.41,0.34607]
[1733462363861,2.12,241.47,241.39,5.67536324]
[1733462364662,2.0695,241.45,241.39,5.67536324]
[1733462365362,2.0698,241.42,241.36,9.45456324]
[1733462365760,5.67536324,241.44,241.36,3.7792]
[1733462366063,5.67536324,241.44,241.36,2.5222]
[1733462366262,2.07,241.39,241.36,2.5222]
[1733462366461,5.67536324,241.44,241.36,2.5222]
[1733462367161,5.67536324,241.44,241.36,1.2232]
[1733462367361,2.0699,241.41,241.36,1.2232]
[1733462369259,1.2934,241.58,241.36,1.2232]
[1733462369459,2.0696,241.45,241.37,5.67536324]
[1733462369663,2.14,241.45,241.37,5.67536324]
[1733462369963,2.0697,241.43,241.37,5.67536324]
[1733462370162,5.67536324,241.44,241.37,5.67536324]
[1733462370958,5.67536324,241.44,241.36,1.2232]
[1733462371361,7.74506324,241.44,241.36,1.2232]
[1733462371861,2.0698,241.42,241.36,1.2232]
[1733462372062,5.67536324,241.42,241.36,1.2232]
[1733462372968,2.07,241.4,241.36,1.2232]
[1733462373464,5.67536324,241.42,241.36,1.2232]
[1733462373769,2.14,241.45,241.31,0.45483]
[1733462373770,5.67536324,241.4,241.31,0.45483]
[1733462374366,5.67536324,241.4,241.32,3.85559698]
[1733462374367,7.81536324,241.4,241.32,3.85559698]
[1733462374570,2.0702,241.38,241.31,0.45483]
[1733462374771,2.0702,241.38,241.32,1.03613692]
[1733462374971,9.88536324,241.4,241.31,2.52553]
[1733462375167,9.88536324,241.4,241.32,6.71150023]
[1733462375368,7.81536324,241.4,241.32,5.67536324]
[1733462375566,2.14,241.4,241.33,1.03609679]
[1733462375772,2.14,241.4,241.32,5.67536324]
[1733462375966,2.14,241.4,241.34,5.67536324]
[1733462376175,2.14,241.42,241.34,5.67536324]
[1733462376370,2.14,241.42,241.35,1.03603092]
[1733462376570,2.14,241.42,241.34,5.67536324]
[1733462376770,2.14,241.42,241.35,1.03603092]
[1733462376971,2.0701,241.4,241.34,5.67536324]
[1733462377276,2.0701,241.4,241.35,1.03602599]
[1733462377572,2.0701,241.4,241.34,5.67536324]
[1733462377775,2.0701,241.4,241.35,1.03602691]
[1733462377973,2.0701,241.4,241.31,2.52553]
[1733462378176,2.0701,241.4,241.33,5.67536324]
[1733462378378,2.0701,241.39,241.34,3.85930415]
[1733462378573,5.67536324,241.42,241.32,5.67536324]
[1733462378881,7.81536324,241.42,241.33,3.86082052]
[1733462379083,7.81536324,241.42,241.34,1.03608608]
[1733462379273,7.81536324,241.42,241.32,5.67536324]
[1733462379474,7.81536324,241.42,241.33,3.86180359]
[1733462379676,2.07,241.4,241.34,1.03607564]
[1733462379877,2.07,241.4,241.32,5.67536324]
[1733462380176,2.07,241.4,241.33,3.86180068]
[1733462380372,7.81536324,241.42,241.34,1.03607485]
[1733462380579,5.67536324,241.4,241.32,5.67536324]
[1733462380779,5.67536324,241.38,241.31,0.45483]
[1733462381081,5.67536324,241.38,241.32,2.8267895]
[1733462381282,5.67536324,241.38,241.33,1.03611806]
[1733462381478,5.67536324,241.38,241.31,0.45483]
[1733462381675,5.67536324,241.38,241.32,1.03612269]
[1733462381676,2.0702,241.38,241.32,1.03612269]
[1733462381980,2.0702,241.38,241.31,0.45483]
[1733462382176,7.74556324,241.38,241.32,1.03612204]
[1733462382376,7.74556324,241.38,241.31,0.45483]
[1733462382377,2.0702,241.37,241.31,0.45483]
[1733462382579,2.0702,241.37,241.32,1.03613448]
[1733462382780,2.0702,241.37,241.31,0.45483]
[1733462382981,2.0702,241.37,241.32,1.036134]
[1733462383181,2.0702,241.37,241.31,0.45483]
[1733462383382,2.0702,241.37,241.32,1.03613528]
[1733462383586,2.0702,241.37,241.31,0.45483]
[1733462383789,2.0702,241.37,241.32,1.0361312]
[1733462383982,2.0702,241.37,241.31,0.45483]
[1733462385587,2.0702,241.37,241.31,5.67536324]
[1733462388085,2.0702,241.37,241.29,2.0709]
[1733462388286,5.67536324,241.38,241.3,1.03614436]
[1733462388486,5.67536324,241.38,241.28,3.4571]
[1733462388487,5.67536324,241.38,241.28,9.13246324]
[1733462388986,2.0705,241.34,241.28,9.13246324]
[1733462390088,2.5828,241.44,241.32,5.67536324]
[1733462390284,8.25816324,241.44,241.35,5.67536324]
[1733462390484,2.5828,241.44,241.35,5.67536324]
[1733462390689,2.14,241.45,241.36,2.0703]
[1733462391094,2.0694,241.47,241.38,7.74546324]
[1733462391287,2.14,241.47,241.38,5.67536324]
[1733462391994,2.0695,241.46,241.38,5.67536324]
[1733462392195,5.67536324,241.46,241.38,5.67536324]
[1733462393704,2.0696,241.45,241.38,5.67536324]
[1733462394298,2.0695,241.46,241.4,5.67536324]
[1733462396392,9.88476324,241.48,241.4,5.67536324]
[1733462397796,7.81536324,241.48,241.4,7.74536324]
[1733462397993,7.81536324,241.52,241.42,5.67536324]
[1733462398897,5.67536324,241.53,241.44,5.67536324]
[1733462399695,7.74426324,241.53,241.44,5.67536324]
[1733462400093,5.67536324,241.51,241.39,1.2281]
[1733462400297,5.67536324,241.51,241.41,5.67536324]
[1733462400603,5.67536324,241.51,241.43,5.67536324]
[1733462401197,7.74436324,241.51,241.43,5.67536324]
[1733462401501,5.67536324,241.51,241.43,5.67536324]
[1733462404799,7.74436324,241.51,241.43,5.67536324]
[1733462407208,7.74436324,241.51,241.39,1.2281]
[1733462407409,7.74436324,241.51,241.42,5.67536324]
[1733462407601,1.3238,241.55,241.44,5.67536324]
[1733462407808,7.74416324,241.55,241.48,5.67536324]
[1733462409410,7.74416324,241.55,241.46,7.74486324]
[1733462410803,2.0689,241.53,241.44,3.4124]
[1733462411007,2.0689,241.53,241.46,5.67536324]
[1733462411204,5.67536324,241.55,241.46,5.67536324]
[1733462412207,2.1,241.59,241.46,5.67536324]
[1733462412515,5.67536324,241.55,241.47,1.3428]
[1733462412911,2.0689,241.52,241.47,1.3428]
[1733462413413,2.1,241.59,241.48,5.67536324]
[1733462413715,5.67536324,241.56,241.48,5.67536324]
[1733462414308,7.74406324,241.56,241.48,5.67536324]
[1733462414711,2.0687,241.56,241.48,5.67536324]
[1733462414917,5.67536324,241.55,241.48,5.67536324]
[1733462415206,7.74406324,241.55,241.48,7.77536324]
[1733462416812,2.069,241.52,241.47,1.3428]
[1733462417618,5.67536324,241.53,241.47,1.3428]
[1733462417820,2.069,241.51,241.47,1.3428]
[1733462418011,2.1,241.59,241.47,1.3428]
[1733462418208,2.0689,241.54,241.47,1.3428]
[1733462419413,2.0689,241.53,241.47,1.3428]
[1733462420013,2.069,241.52,241.47,1.3428]
[1733462420214,5.67536324,241.53,241.47,1.3428]
[1733462420720,2.0692,241.5,241.44,3.4428]
[1733462421020,5.67536324,241.51,241.44,3.4428]
[1733462421623,2.1,241.59,241.44,3.4428]
[1733462421815,2.0692,241.49,241.4,2.0699]
[1733462422020,2.0692,241.49,241.42,5.67536324]
[1733462422213,5.67536324,241.52,241.42,5.67536324]
[1733462422523,2.0693,241.49,241.42,5.67536324]
[1733462422916,2.0693,241.48,241.42,5.67536324]
[1733462423719,2.0693,241.48,241.42,7.74516324]
[1733462424419,2.0693,241.48,241.42,2.0698]
[1733462424619,2.0693,241.48,241.44,5.67536324]
[1733462425611,2.0694,241.47,241.44,5.67536324]
[1733462425812,5.67536324,241.52,241.44,5.67536324]
[1733462427622,2.0693,241.49,241.44,5.67536324]
[1733462427918,5.67536324,241.52,241.44,5.67536324]
[1733462428322,5.67536324,241.56,241.44,5.67536324]
[1733462428520,7.73536324,241.56,241.44,5.67536324]
[1733462428822,2.069,241.53,241.45,2.0695]
[1733462429120,5.67536324,241.53,241.42,5.67536324]
[1733462429520,5.67536324,241.53,241.43,2.0697]
[1733462429521,2.0691,241.51,241.43,2.0697]
[1733462429717,5.67536324,241.53,241.41,2.1]
[1733462429922,5.67536324,241.5,241.41,2.1]
[1733462430619,2.0694,241.48,241.42,2.0698]
[1733462431222,5.67536324,241.5,241.41,2.1]
[1733462431426,2.0695,241.46,241.39,2.06]
[1733462431626,2.0695,241.46,241.39,7.73536324]
[1733462432229,2.0695,241.46,241.4,2.07]
[1733462432831,2.0694,241.48,241.41,2.0699]
[1733462433024,5.67536324,241.5,241.41,2.0699]
[1733462433630,2.06,241.51,241.41,5.67536324]
[1733462433827,2.06,241.51,241.43,5.67536324]
[1733462434029,4.1291,241.51,241.44,2.0696]
[1733462434227,4.1291,241.51,241.43,5.67536324]
[1733462434933,2.0692,241.5,241.41,5.67536324]
[1733462436630,2.0692,241.5,241.42,2.0699]
[1733462437225,7.73536324,241.51,241.41,5.67536324]
[1733462438329,7.73536324,241.51,241.44,2.0697]
[1733462438530,2.0689,241.54,241.44,5.67536324]
[1733462438729,9.80426324,241.54,241.44,7.73536324]
[1733462438929,7.73536324,241.54,241.44,7.73536324]
[1733462439127,2.06,241.54,241.47,7.74476324]
[1733462440836,2.0687,241.55,241.47,7.74476324]
[1733462441234,2.0687,241.56,241.48,2.0693]
[1733462441835,2.06,241.58,241.47,5.67536324]
[1733462442035,9.80386324,241.58,241.49,7.74456324]
[1733462442837,2.0686,241.57,241.47,7.74466324]
[1733462443437,5.67536324,241.56,241.47,7.74466324]
[1733462443934,2.0687,241.55,241.47,5.67536324]
[1733462444139,5.67536324,241.56,241.47,5.67536324]
[1733462444533,5.67536324,241.56,241.48,2.0693]
[1733462444739,1.2197,241.62,241.52,5.67536324]
[1733462444936,3.4084,241.75,241.6,5.67536324]
[1733462445239,5.67536324,241.7,241.6,5.67536324]
[1733462445637,7.74286324,241.7,241.6,7.74366324]
[1733462445838,5.67536324,241.7,241.6,7.74366324]
[1733462446241,5.67536324,241.72,241.62,5.67536324]
[1733462446439,5.67536324,241.72,241.59,2.06]
[1733462446440,7.73536324,241.72,241.64,5.67536324]
[1733462446637,2.06,241.72,241.64,5.67536324]
[1733462449339,2.0676,241.69,241.6,1.3326]
[1733462449538,2.0676,241.69,241.6,7.00796324]
[1733462453345,2.0676,241.68,241.6,7.00796324]
[1733462457548,2.06,241.72,241.63,5.67536324]
[1733462457744,8.26766324,241.75,241.66,5.67536324]
[1733462457952,10.32766324,241.75,241.66,5.67536324]
[1733462458156,2.0672,241.73,241.66,5.67536324]
[1733462460452,8.26766324,241.75,241.66,5.67536324]
[1733462460654,2.0673,241.72,241.64,2.08]
[1733462461252,8.26766324,241.75,241.66,5.67536324]
[1733462461453,2.0672,241.74,241.66,5.67536324]
[1733462461853,2.0672,241.73,241.66,5.67536324]
[1733462462157,8.26766324,241.75,241.64,7.75536324]
[1733462462853,2.0673,241.72,241.64,9.82326324]
[1733462463055,8.26766324,241.75,241.64,9.82326324]
[1733462463953,2.0673,241.72,241.64,9.82326324]
[1733462464854,8.26766324,241.75,241.6,3.8961]
[1733462465152,2.0677,241.68,241.62,5.67536324]
[1733462465348,2.5923,241.75,241.6,5.9761]
[1733462465349,5.67536324,241.69,241.6,5.9761]
[1733462465752,2.0677,241.68,241.6,5.9761]
[1733462465948,5.67536324,241.69,241.6,5.9761]
[1733462466755,2.0678,241.67,241.6,5.9761]
[1733462467359,2.0677,241.68,241.62,5.67536324]
[1733462469752,2.08,241.71,241.28,17.13543554]
[1733462469953,2.08,241.71,241.54,5.67536324]
[1733462469954,5.67536324,241.66,241.54,5.67536324]
[1733462470165,5.67536324,241.63,241.54,5.67536324]
[1733462470365,2.0684,241.6,241.54,5.67536324]
[1733462470557,7.75536324,241.63,241.54,5.67536324]
[1733462470953,7.75536324,241.63,241.5,3.3316]
[1733462471259,7.75536324,241.63,241.52,5.67536324]
[1733462472261,2.0686,241.57,241.52,5.67536324]
[1733462473459,5.67536324,241.66,241.55,5.67536324]
[1733462473657,2.08,241.65,241.55,5.67536324]
[1733462474463,2.08,241.65,241.5,3.3316]
[1733462474464,2.068,241.64,241.58,5.67536324]
[1733462474664,2.08,241.67,241.61,5.67536324]
[1733462475159,2.0679,241.65,241.61,5.67536324]
[1733462476363,4.1478,241.67,241.61,5.67536324]
[1733462476867,2.0678,241.67,241.61,5.67536324]
[1733462477258,2.08,241.69,241.61,5.67536324]
[1733462477462,5.67536324,241.74,241.64,5.67536324]
[1733462477665,2.08,241.72,241.64,5.67536324]
[1733462478062,2.0676,241.69,241.64,5.67536324]
[1733462478564,2.0677,241.68,241.64,5.67536324]
[1733462479168,2.08,241.72,241.64,5.67536324]
[1733462479368,2.0675,241.7,241.64,5.67536324]
[1733462480069,2.0674,241.71,241.64,5.67536324]
[1733462481264,2.0672,241.73,241.67,5.67536324]
[1733462482562,7.75536324,241.81,241.72,5.67536324]
[1733462482768,7.75536324,241.81,241.69,5.67536324]
[1733462482769,5.67536324,241.79,241.69,5.67536324]
[1733462483670,2.067,241.76,241.69,5.67536324]
[1733462485467,2.067,241.75,241.69,5.67536324]
[1733462486462,5.67536324,241.75,241.66,1.2794]
[1733462487162,2.0674,241.71,241.66,1.2794]
[1733462488467,2.0676,241.69,241.65,5.67536324]
[1733462488767,5.67536324,241.73,241.63,5.67536324]
[1733462488967,2.0676,241.68,241.63,5.67536324]
[1733462489569,2.0676,241.68,241.65,5.67536324]
[1733462490663,2.0676,241.69,241.65,5.67536324]
[1733462490967,2.06,241.8,241.67,5.67536324]
[1733462491164,2.067,241.76,241.71,5.67536324]
[1733462491365,2.06,241.8,241.73,5.67536324]
[1733462491867,2.0669,241.77,241.73,5.67536324]
[1733462492773,2.06,241.8,241.73,5.67536324]
[1733462493074,2.06,241.8,241.75,5.67536324]
[1733462493265,4.1266,241.8,241.75,5.67536324]
[1733462493765,2.06,241.8,241.75,5.67536324]
[1733462495673,4.1266,241.8,241.75,5.67536324]
[1733462495971,4.1266,241.8,241.71,3.396]
[1733462495972,4.1266,241.8,241.73,5.67536324]
[1733462496164,2.0667,241.79,241.73,5.67536324]
[1733462496363,2.06,241.8,241.73,5.67536324]
[1733462496663,2.06,241.8,241.71,9.07136324]
[1733462496967,5.67536324,241.79,241.71,9.07136324]
[1733462497167,5.67536324,241.79,241.71,7.01136324]
[1733462497466,5.67536324,241.79,241.71,1.336]
[1733462498673,2.067,241.76,241.71,1.336]
[1733462499264,2.067,241.76,241.71,7.01136324]
[1733462499767,2.06,241.79,241.71,1.336]
[1733462499768,5.67536324,241.77,241.71,1.336]
[1733462500072,2.0672,241.73,241.71,1.336]
[1733462500876,2.0671,241.74,241.71,1.336]
[1733462501376,3.9309,241.88,241.71,1.336]
[1733462501575,5.67536324,241.8,241.71,1.336]
[1733462502467,2.067,241.76,241.71,1.336]
[1733462502670,5.67536324,241.77,241.67,6.92076324]
[1733462502871,5.67536324,241.75,241.67,6.92076324]
[1733462503082,5.67536324,241.78,241.67,6.92076324]
[1733462503970,2.0671,241.74,241.69,5.67536324]
[1733462504472,5.67536324,241.78,241.67,1.2454]
[1733462504678,5.67536324,241.75,241.67,1.2454]
[1733462505376,2.0674,241.71,241.67,1.2454]
[1733462505576,2.0674,241.71,241.67,6.92076324]
[1733462507374,2.0676,241.68,241.63,1.3296]
[1733462507579,2.0676,241.68,241.64,5.67536324]
[1733462508280,2.0677,241.67,241.64,5.67536324]
[1733462510175,5.67536324,241.75,241.64,5.67536324]
[1733462510477,2.0678,241.66,241.64,5.67536324]
[1733462511871,5.67536324,241.73,241.63,1.3296]
[1733462512082,5.67536324,241.71,241.61,2.06]
[1733462512270,5.67536324,241.71,241.55,1.234]
[1733462512271,5.67536324,241.69,241.59,5.67536324]
[1733462512477,2.0683,241.61,241.59,5.67536324]
[1733462512775,5.67536324,241.67,241.55,1.234]
[1733462512970,5.67536324,241.65,241.55,5.67536324]
[1733462513169,5.67536324,241.63,241.55,5.67536324]
[1733462513372,7.73536324,241.63,241.55,5.67536324]
[1733462513775,7.73536324,241.63,241.5,1.3315]
[1733462513776,5.67536324,241.61,241.51,5.67536324]
[1733462513981,5.67536324,241.61,241.53,5.67536324]
[1733462514478,7.73536324,241.63,241.53,5.67536324]
[1733462514870,2.0683,241.6,241.53,5.67536324]
[1733462515070,7.73536324,241.63,241.53,5.67536324]
[1733462515876,5.67536324,241.61,241.53,5.67536324]
[1733462516278,5.67536324,241.61,241.51,5.67536324]
[1733462516682,2.0685,241.59,241.51,5.67536324]
[1733462518283,2.0685,241.59,241.53,5.67536324]
[1733462519381,3.9058,241.75,241.57,5.67536324]
[1733462519686,5.67536324,241.69,241.6,5.67536324]
[1733462519888,2.06,241.68,241.6,5.67536324]
[1733462520387,2.0678,241.66,241.6,5.67536324]
[1733462521084,5.67536324,241.69,241.6,5.67536324]
[1733462521085,2.0677,241.67,241.6,5.67536324]
[1733462521387,2.0677,241.67,241.5,1.3315]
[1733462521388,2.5716,241.75,241.65,5.67536324]
[1733462521588,2.0673,241.72,241.65,5.67536324]
[1733462522196,2.0674,241.71,241.65,5.67536324]
[1733462522787,3.3216,241.75,241.67,5.67536324]
[1733462523089,2.06,241.75,241.67,5.67536324]
[1733462523581,5.67536324,241.74,241.63,2.6104]
[1733462523882,5.67536324,241.75,241.66,5.67536324]
[1733462524690,2.0673,241.72,241.66,5.67536324]
[1733462525284,5.67536324,241.75,241.66,5.67536324]
[1733462525285,2.0674,241.71,241.66,5.67536324]
[1733462525490,5.67536324,241.73,241.63,8.28576324]
[1733462526085,5.67536324,241.73,241.66,5.67536324]
[1733462526991,5.67536324,241.73,241.63,4.6704]
[1733462527187,5.67536324,241.7,241.63,2.06]
[1733462527385,5.67536324,241.7,241.62,1.2675]
[1733462527587,2.0677,241.67,241.62,1.2675]
[1733462529686,2.0677,241.67,241.59,2.06]
[1733462529883,2.06,241.71,241.59,2.06]
[1733462529884,2.0678,241.66,241.59,2.06]
[1733462530088,2.06,241.71,241.59,2.06]
[1733462530389,8.8814494,241.73,241.59,2.06]
[1733462530584,2.06,241.7,241.59,2.06]
[1733462530782,8.8814494,241.69,241.57,1.3329]
[1733462530982,8.8814494,241.69,241.55,2.06]
[1733462531387,2.0682,241.62,241.55,2.06]
[1733462532285,2.06,241.65,241.55,4.1287]
[1733462532492,2.06,241.67,241.55,2.06]
[1733462533189,2.0678,241.67,241.56,8.8814494]
[1733462533595,2.06,241.7,241.56,8.8814494]
[1733462533788,2.0679,241.65,241.56,10.9500494]
[1733462535187,2.0679,241.65,241.57,2.06]
[1733462535793,8.8814494,241.69,241.57,2.06]
[1733462536598,2.0681,241.63,241.57,2.06]
[1733462538094,2.0679,241.65,241.57,2.06]
[1733462538298,2.06,241.7,241.57,2.06]
[1733462539390,2.0681,241.63,241.57,2.06]
[1733462540389,8.8814494,241.67,241.52,10.9414494]
[1733462540587,2.0683,241.61,241.52,10.9414494]
[1733462540797,2.06,241.66,241.52,10.9414494]
[1733462540996,2.0683,241.6,241.52,10.9504494]
[1733462541297,2.06,241.66,241.52,10.9414494]
[1733462541796,8.8814494,241.63,241.51,1.2613]
[1733462542397,2.0684,241.59,241.51,1.2613]
[1733462543093,2.0685,241.58,241.51,1.2613]
[1733462543792,2.06,241.61,241.51,1.2613]
[1733462545199,8.8814494,241.6,241.51,1.2613]
[1733462545392,2.0687,241.56,241.51,1.2613]
[1733462546299,2.0687,241.56,241.47,0.24378]
[1733462547099,2.0687,241.55,241.47,0.24378]
[1733462547902,8.8814494,241.6,241.47,0.24378]
[1733462548104,5.69015251,241.56,241.47,5.93393251]
[1733462548905,5.69015251,241.59,241.5,5.69015251]
[1733462549198,7.83015251,241.59,241.5,5.69015251]
[1733462550306,2.14,241.59,241.5,5.69015251]
[1733462550512,2.0685,241.57,241.5,5.69015251]
[1733462550810,2.0685,241.57,241.49,5.69015251]
[1733462552501,2.0686,241.56,241.49,5.69015251]
[1733462554009,5.69015251,241.57,241.49,5.69015251]
[1733462554206,2.0684,241.58,241.5,3.3976]
[1733462554408,5.69015251,241.59,241.5,1.3285]
[1733462555612,2.0685,241.57,241.5,1.3285]
[1733462556110,5.69015251,241.59,241.5,1.3285]
[1733462556307,2.0686,241.56,241.5,1.3285]
[1733462556503,2.14,241.6,241.5,1.3285]
[1733462556707,5.69015251,241.56,241.47,0.24378]
[1733462556908,2.0687,241.54,241.47,0.24378]
[1733462557621,2.0688,241.53,241.47,0.24378]
[1733462557914,2.14,241.6,241.47,2.31308]
[1733462558216,5.69015251,241.57,241.47,2.31308]
[1733462558409,2.0687,241.54,241.47,2.31308]
[1733462558909,5.69015251,241.57,241.49,7.75935251]
[1733462559115,2.0686,241.56,241.49,7.75935251]
[1733462561417,2.0685,241.58,241.5,2.069]
[1733462563017,2.0685,241.58,241.51,2.069]
[1733462564512,5.69015251,241.59,241.49,5.69015251]
[1733462564719,5.69015251,241.59,241.52,2.0689]
[1733462566621,7.75845251,241.59,241.52,2.0689]
[1733462566816,5.69015251,241.59,241.53,2.0688]
[1733462567718,5.69015251,241.59,241.49,5.69015251]
[1733462567919,5.69015251,241.59,241.51,2.0689]
[1733462568322,7.75845251,241.59,241.51,2.0689]
[1733462568521,7.75845251,241.59,241.52,2.0689]
[1733462570716,2.0684,241.58,241.52,2.0689]
[1733462573022,5.69015251,241.6,241.53,2.0688]
[1733462573217,5.69015251,241.6,241.5,7.83015251]
[1733462574828,2.14,241.62,241.5,4.2091]
[1733462574829,7.75865251,241.57,241.5,4.2091]
[1733462575224,7.75865251,241.57,241.51,2.069]
[1733462580122,5.69015251,241.57,241.48,2.06]
[1733462580318,2.069,241.52,241.49,1.03523978]
[1733462580524,2.069,241.52,241.47,2.0693]
[1733462581422,2.069,241.51,241.46,2.0694]
[1733462581622,5.69015251,241.54,241.46,2.0694]
[1733462582427,2.069,241.52,241.46,2.0694]
[1733462582925,5.69015251,241.54,241.47,2.0693]
[1733462583627,2.0688,241.53,241.47,2.0693]
[1733462584521,7.75895251,241.54,241.47,2.0693]
[1733462586030,2.0686,241.56,241.48,2.0693]
[1733462586233,7.75875251,241.56,241.48,2.0693]
[1733462586528,5.69015251,241.56,241.48,2.0693]
[1733462587226,5.69015251,241.49,241.37,0.39085]
[1733462587530,5.69015251,241.43,241.37,0.39085]
[1733462589525,5.69015251,241.43,241.37,2.46105]
[1733462589926,5.69015251,241.43,241.37,0.39085]
[1733462591228,5.69015251,241.43,241.37,2.46105]
[1733462592826,2.069,241.52,241.44,2.0696]
[1733462593026,5.69015251,241.51,241.4,5.69015251]
[1733462593534,5.69015251,241.49,241.4,5.69015251]
[1733462595429,5.69015251,241.49,241.44,2.0696]
[1733462596533,5.69015251,241.5,241.44,2.0696]